Cogmind - Beta 14 @@@ ROGUE MODE // 2024.12.08 @ 21:47:37 Player: Balonith Result: Destroyed by G-47 Trooper with Particle Gun Performance ------------- Evolutions (2) 1000 Regions Visited (3) 600 Robots Destroyed (58) 290 Value Destroyed (1690) 1690 Prototype IDs (3) 60 Alien Tech Used (0) 0 Bonus (291) 291 TOTAL SCORE: 3931 Bonus ------- High Alert Combat Kills 291 Cogmind --------- Core Integrity 0/550 Matter 300/300 Energy 160/160 System Corruption 0% Temperature Cool (9) Movement Walking (120) Location -8/Materials Parts ------- > --- POWER (1) -------- Light Nuclear Core > --- PROPULSION (3) --- Aluminum Leg Aluminum Leg Improved Aluminum Leg > --- UTILITY (4) ------ Heat Sink Visual Processing Unit Improved Signal Interpreter Light Armor Plating > --- WEAPON (3) ------- Heavy Laser Heavy Ion Cannon Katana > --- INVENTORY (5) ---- Advanced Weight Redist. System Advanced Targeting Computer Advanced ECM Suite System Shield Axe Peak State ------------ > --- POWER ------------ Light Nuclear Core > --- PROPULSION ------- Wheel Armored Wheel > --- UTILITY ---------- High-capacity Storage Unit Visual Processing Unit Improved Signal Interpreter Insulated Plating > --- WEAPON ----------- Heavy Laser Heavy Laser Autogun > --- INVENTORY -------- Light Nuclear Core Heat Sink Cooling System Small Matter Pod Advanced Weight Redist. System Sensor Array Advanced Targeting Computer Advanced Targeting Computer Advanced ECM Suite Utility Shielding Light Armor Plating Light Armor Plating Hardlight Generator System Shield Heavy Laser Katana Axe [Rating: 29] Favorites ----------- Power Nuclear Core Engine Ion Engine Power Core Nuclear Core Propulsion Armored Wheel Leg Aluminum Leg Wheel Armored Wheel Utility High-capacity Storage Unit Device Structural Scanner Storage High-capacity Storage Unit Processor Visual Processing Unit Protection Light Armor Plating Weapon Shotgun Energy Gun Heavy Laser Energy Cannon Heavy Ion Cannon Ballistic Gun Shotgun Slashing Weapon Katana Build | -11 -10 -9 -8 ------- Run | Yrd Mat Mat Mat Slots Evolved 4 | . . 2 2 Power . | . . . . Propulsion 1 | . . 1 . Utility 2 | . . . 2 Weapon 1 | . . 1 . Parts Attached 62 | 6 8 18 30 Power 8 | 1 1 2 4 Engine 3 | 1 1 1 . Core 5 | . . 1 4 Reactor . | . . . . Propulsion 15 | 2 2 6 5 Treads . | . . . . Leg 4 | . . . 4 Wheel 11 | 2 2 6 1 Hover . | . . . . Flight . | . . . . Utility 15 | 1 3 . 11 Device 3 | . 1 . 2 Storage 3 | 1 2 . . Processor 3 | . . . 3 Hackware . | . . . . Protection 6 | . . . 6 Artifact . | . . . . Weapon 24 | 2 2 10 10 Energy Gun 6 | 1 . 1 4 Energy Cannon 1 | . . . 1 Ballistic Gun 13 | 1 2 9 1 Ballistic Cannon . | . . . . Launcher . | . . . . Special Weapon . | . . . . Impact Weapon . | . . . . Slashing Weapon 4 | . . . 4 Piercing Weapon . | . . . . Special Melee Weapon . | . . . . Unidentified Prototypes 1 | . . . 1 Parts Lost 20 | . . 4 16 Power 4 | . . 1 3 Propulsion 6 | . . 1 5 Utility 3 | . . . 3 Weapon 7 | . . 2 5 Highest Loss Streak 8 | . . 3 8 To Critical Strikes . | . . . . Average Slot Usage (%) 93 | . 93 99 89 Engine 3 | . 14 5 . Core 6 | . . 5 7 Leg 2 | . . . 5 Wheel 23 | . 28 32 15 Device 7 | . 5 11 5 Storage 9 | . 17 11 6 Processor 8 | . . . 15 Protection 3 | . . . 6 Energy Gun 6 | . 3 3 9 Ballistic Gun 19 | . 23 29 11 Slashing Weapon 1 | . . . 3 Peak Build Rating 29 | 6 12 20 29 Average Rating 19 | 4 10 17 24 On Entrance 9 | . 6 12 18 Naked Turns . | . . . . Heaviest Build 60 | 12 52 57 60 Greatest Support 40 | 26 26 40 40 Greatest Overweight (x) 4 | . 2 2 4 Average Overweight (x) . | . . 1 1 Largest Inventory Capacity 20 | 8 20 20 20 Average Capacity 16 | 6 9 20 16 Most Carried 20 | 4 11 20 19 Average Carried 12 | 1 6 14 13 Final Capacity 20 | 8 20 20 5 Final Carried 14 | 3 11 14 5 Class Distribution -------------------- 47% | Skirmisher 15% | Scavenger-Mutant 12% | Mutant 11% | Tank 8% | Scavenger-Tank 4% | Gunner Dominant Class ---------------- Mutant | -10/Materials Skirmisher | -9/Materials Scavenger-Mutant | -8/Materials Resources | -11 -10 -9 -8 ----------- Run | Yrd Mat Mat Mat Matter Collected 1531 | 200 191 600 540 Remotely . | . . . . Salvage Created 1876 | . 239 825 812 Parts 129 | . 14 77 38 Haulers Intercepted . | . . . . Recyclers Shooed . | . . . . Parts Field Recycled . | . . . . Retrieved Matter . | . . . . Parts Self-Destructed . | . . . . Prevented . | . . . . Kills | -11 -10 -9 -8 ------- Run | Yrd Mat Mat Mat Combat Hostiles Destroyed 51 | . 7 29 15 Melee 5 | . . . 5 Guns 42 | . 7 25 10 AOE 4 | . . 4 . Classes Destroyed 8 | . 2 5 1 Worker 2 | . . 2 . Recycler 1 | . . 1 . Operator 1 | . . 1 . Watcher 3 | . . 1 2 Swarmer 19 | . 2 17 . Grunt 22 | . 5 7 10 Duelist 3 | . . . 3 Sentry 7 | . . 5 2 Best Kill Streak 9 | . 3 9 3 Combat Bots Only 7 | . 3 7 3 Max Kills in Single Turn 6 | . 1 6 1 Gunslinging 1 | . . 1 . Exploded 4 | . . 4 . Melee 1 | . . . 1 Uniques/NPCs Destroyed . | . . . . Combat | -11 -10 -9 -8 -------- Run | Yrd Mat Mat Mat Hostile Shots Fired 290 | . 20 124 146 Missed 84 | . 7 38 39 Damage Taken 3110 | . 154 1011 1945 Core 652 | . 14 79 559 Absorbed by Shields . | . . . . Redirected to Shielding 5 | . . . 5 Regen/Repaired (Parts) 79 | . . 79 . Core Remaining (%) 91 | 100 94 80 . Volleys Fired 108 | . 13 46 49 Largest 3 | . 2 3 3 Hottest 161 | . 70 102 161 Shots Fired 288 | . 26 134 128 Gun 282 | . 26 134 122 Cannon 6 | . . . 6 Launcher . | . . . . Special . | . . . . Kinetic 224 | . 23 125 76 Thermal 64 | . 3 9 52 Explosive . | . . . . Electromagnetic . | . . . . Robot Hit Streak 13 | . 11 7 13 Robot Miss Streak 13 | . 2 13 5 Penetration Max . | . . . . Secondary Targets 5 | . 1 3 1 Max Gunslinging Chain 1 | . 1 1 1 Shots Hit Robots 176 | . 18 68 90 Core Hits 89 | . 14 43 32 Critical Kills 2 | . . 2 . Critical Parts Destroyed 1 | . 1 . . Critical Strikes 9 | . 1 3 5 Burn 4 | . . 1 3 Destroy 3 | . 1 2 . Sever 2 | . . . 2 Melee Attacks 17 | . . . 17 Impact . | . . . . Slashing 17 | . . . 17 Piercing . | . . . . Sneak Attacks . | . . . . Combat Hostiles . | . . . . Follow-up Attacks 2 | . . . 2 Damage Inflicted 3454 | . 288 1396 1770 Guns 2473 | . 288 866 1319 Cannons 109 | . . . 109 Explosions 530 | . . 530 . Melee 342 | . . . 342 Ramming . | . . . . Kinetic 1898 | . 275 837 786 Thermal 1214 | . 13 559 642 Explosive . | . . . . Electromagnetic . | . . . . Impact . | . . . . Slashing 342 | . . . 342 Piercing . | . . . . Highest Corruption . | . . . . Average Corruption . | . . . . Corruption Purged . | . . . . Corruption Blocked . | . . . . Overload Shots . | . . . . Overflow Damage 225 | . . 225 . Projectiles . | . . . . Explosions 225 | . . 225 . Melee . | . . . . Knockbacks . | . . . . Impact . | . . . . Kinetic . | . . . . Secondary . | . . . . Self-Inflicted Damage . | . . . . Shots . | . . . . Rammed . | . . . . Targets Rammed . | . . . . Kicked . | . . . . Crushed . | . . . . Highest Temperature 420 | . 47 165 420 Average Temperature 108 | . 17 36 139 Received Heat Transfer 957 | . 66 126 765 Effects 3 | . . . 3 Interference 3 | . . . 3 Siege Activations . | . . . . Robots Corrupted . | . . . . Combat Hostiles . | . . . . Parts Fried . | . . . . Impact Corruptions . | . . . . Robots Melted . | . . . . Combat Hostiles . | . . . . Parts Melted 2 | . . . 2 Heat Transferred 1978 | . 37 498 1443 Parts Sabotaged . | . . . . Parts Stolen . | . . . . Parts Stripped . | . . . . Power Chain Reactions . | . . . . Alert | -11 -10 -9 -8 ------- Run | Yrd Mat Mat Mat Peak Influence 914 | . 175 914 588 Initial 328 | . . 73 328 Average 409 | . 69 623 351 Maximum Alert Level 3 | . . 3 2 Low Security (%) 16 | 100 100 10 . Level 1 45 | . . 12 80 Level 2 20 | . . 29 19 Level 3 16 | . . 47 . Level 4 . | . . . . Level 5 . | . . . . High Security . | . . . . Max Security . | . . . . Squads Dispatched 5 | . 1 3 1 Investigation 4 | . 1 2 1 Extermination . | . . . . Reinforcement 1 | . . 1 . Assault . | . . . . Garrison . | . . . . Intercept . | . . . . Searches Triggered . | . . . . Construction Impeded . | . . . . Haulers Reinforced . | . . . . Active Scanning Responses . | . . . . Cargo Convoy Interrupts . | . . . . Stealth | -11 -10 -9 -8 --------- Run | Yrd Mat Mat Mat Distress Signals 1 | . . . 1 Communications Jammed . | . . . . Distress Signals . | . . . . Times Spotted 80 | . 10 46 24 Peak Tracking Total 7 | . 4 7 5 Tactical Retreats 9 | . 1 6 2 Traps | -11 -10 -9 -8 ------- Run | Yrd Mat Mat Mat Traps Triggered 2 | . 1 1 . Indirectly . | . . . . Trap Hack Attempts . | . . . . Triggered . | . . . . Disarmed . | . . . . Reprogrammed . | . . . . Reused . | . . . . Traps Extracted . | . . . . Installed . | . . . . Triggered . | . . . . Machines | -11 -10 -9 -8 ---------- Run | Yrd Mat Mat Mat Machines Disabled 6 | . . 3 3 Max in Single Turn 3 | . . 3 1 Machines Repaired . | . . . . Machines Dismantled . | . . . . Machines Sabotaged . | . . . . Overloaded Fab Kills . | . . . . Hacking | -11 -10 -9 -8 --------- Run | Yrd Mat Mat Mat Machines Accessed 9 | . . 5 4 Terminals 6 | . . 3 3 Fabricators . | . . . . Repair Stations 1 | . . 1 . Recycling Units 2 | . . 1 1 Scanalyzers . | . . . . Garrison Access . | . . . . Total Hacks 27 | . . 19 8 Successful 13 | . . 10 3 Failed 14 | . . 9 5 Catastrophic 1 | . . 1 . Database Lockouts . | . . . . Manual 10 | . . 6 4 Terminals 19 | . . 12 7 Fabricators . | . . . . Repair Stations 4 | . . 4 . Recycling Units 4 | . . 3 1 Scanalyzers . | . . . . Garrison Access . | . . . . Terminal Hacks 7 | . . 5 2 Prototype ID Bank 1 | . . 1 . Alert Level 3 | . . 2 1 Unreport Threat 1 | . . 1 . Dispatch Records 1 | . . . 1 Zone Layout 1 | . . 1 . Fabricator Hacks . | . . . . Repair Station Hacks 3 | . . 3 . Scan Component 2 | . . 2 . Repair 1 | . . 1 . Recycling Unit Hacks 3 | . . 2 1 Process 1 | . . 1 . Report Inventory 1 | . . . 1 Retrieve Matter 1 | . . 1 . Scanalyzer . | . . . . Garrison Access Hacks . | . . . . Unauthorized Hacks . | . . . . Terminals . | . . . . Fabricators . | . . . . Repair Stations . | . . . . Recycling Units . | . . . . Scanalyzers . | . . . . Garrison Access . | . . . . Data Cores Recovered 1 | . . 1 . Used . | . . . . Hacking Detections 6 | . . 3 3 Full Trace Events 3 | . . 2 1 Feedback Events . | . . . . Feedback Blocked . | . . . . Robot Schematics Acquired . | . . . . Robots Built . | . . . . Authchips . | . . . . Time . | . . . . Total Robot Build Rating . | . . . . Part Schematics Acquired . | . . . . Parts Built . | . . . . Authchips . | . . . . Time . | . . . . Total Part Build Rating . | . . . . Parts Repaired 1 | . . 1 . Time 32 | . . 32 . Parts Recycled . | . . . . Recycled Matter 157 | . . 157 . Retrieved Matter 157 | . . 157 . Retrieved Components . | . . . . Parts Scanalyzed . | . . . . Part Schematics Acquired . | . . . . Parts Damaged . | . . . . Bothacking | -11 -10 -9 -8 ------------ Run | Yrd Mat Mat Mat Used RIF Installer . | . . . . Robots Hacked . | . . . . Non-combat . | . . . . Combat . | . . . . Robot Hacks Applied . | . . . . Relay Couplers Released . | . . . . Fabnet Peak Effective % . | . . . . Robots Rewired . | . . . . Allies Hacked . | . . . . Hacks Repelled . | . . . . Allies | -11 -10 -9 -8 -------- Run | Yrd Mat Mat Mat Total Allies . | . . . . Largest Group . | . . . . Highest-Rated Group . | . . . . Highest-Rated Ally . | . . . . Total Orders . | . . . . Ally Attacks . | . . . . Total Damage . | . . . . Kills . | . . . . Allies Corrupted . | . . . . Allies Melted . | . . . . Intel | -11 -10 -9 -8 ------- Run | Yrd Mat Mat Mat Robot Analysis Total . | . . . . Derelict Logs Recovered . | . . . . Drone Launches . | . . . . Drone Recoveries . | . . . . Exploration | -11 -10 -9 -8 ------------- Run | Yrd Mat Mat Mat Turns Passed 2517 | 88 239 896 1294 Spaces Moved 1693 | 88 179 637 789 Core 18 | 10 . . 8 Treads . | . . . . Legs 218 | . . . 218 Wheels 1457 | 78 179 637 563 Hover . | . . . . Flight . | . . . . Fastest Speed 50 | 50 90 105 100 Average Speed 107 | 85 92 105 115 Slowest Speed 200 | 90 120 125 200 Overloaded Moves . | . . . . Propulsion Burnouts . | . . . . Robots Hopped . | . . . . Cave-ins Triggered . | . . . . Exploration Rate (%) 29 | 4 22 58 34 Regions Visited 3 Branch Regions . Pre-discovered Areas . | . . . . Known Exits Taken . | . . . . Unknown Exits Taken 3 | 1 1 1 . Scrap Searched . | . . . . Spaces Dug . | . . . . Terrain Destroyed 44 | . . 42 2 Melee . | . . . . Projectile 2 | . . . 2 AOE 42 | . . 42 . Terrain Rammed . | . . . . Walls Destroyed . | . . . . Machines Disabled . | . . . . Actions | -11 -10 -9 -8 --------- Run | Yrd Mat Mat Mat Total 2147 | 98 228 763 1058 Wait 178 | . 6 31 141 Move 1690 | 87 178 636 789 Hop . | . . . . Pick Up 53 | 4 14 17 18 Fast Attach 22 | 6 1 2 13 Attach 28 | . 3 9 16 Detach 11 | . 1 3 7 Swap 13 | . 4 7 2 Drop 30 | 1 8 12 9 Fire 108 | . 13 46 49 Melee 14 | . . . 14 Ram . | . . . . Kick . | . . . . Crush . | . . . . Escape Stasis . | . . . . Rewire . | . . . . Trap . | . . . . Miscellaneous . | . . . . Route ------- -11/Scrapyard -10/Materials -9/Materials (discovered 3 exits: *Mat / [*Min x2]) -8/Materials (discovered 1 exit: *Sto) History --------- Turn | Location | Event 27 | -11/Scrapyard | Discovered new exit (range 15) 89 | -11/Scrapyard | Entered Materials 214 | -10/Materials | Discovered new exit (range 9) 328 | -10/Materials | Entered another Materials area 328 | -9/Materials | Evolved 2 slots: Propulsion x1, Weapon x1 578 | -9/Materials | Destroyed 7 combat bots 638 | -9/Materials | Discovered new exit (range 14) 653 | -9/Materials | Build established: Skirmisher 999 | -9/Materials | Lost 3 parts (1n2w) 1004 | -9/Materials | Discovered new exit (range 14) 1096 | -9/Materials | Repaired Arm. Wheel 1216 | -9/Materials | Discovered new exit (range 4) 1224 | -9/Materials | Entered another Materials area 1224 | -8/Materials | Evolved 2 slots: Utility x2 1472 | -8/Materials | Discovered new exit (range 6) 1530 | -8/Materials | Lost 3 parts (1p2u) 1648 | -8/Materials | Lost 4 parts (2n1u1w) 1707 | -8/Materials | Identified exit to Storage 2177 | -8/Materials | Core integrity fell below 50% 2195 | -8/Materials | Core integrity fell below 20% 2244 | -8/Materials | Lost 8 parts (2p3n3w) 2488 | -8/Materials | Build established: Scavenger-Mutant 2518 | -8/Materials | Destroyed by G-47 Trooper with Particle Gun Last Messages --------------- 02306_ Acquired 17 matter. 02343_ G-47 Trooper destroyed. 02346_ Acquired 13 matter. 02348_ Acquired Aluminum Leg. 02350_ Acquired 10 matter. 02353_ Acquired Lgt. Nuclear Core. 02359_ Acquired 10 matter. 02366_ Connecting with Terminal... >>Alert(Check) Current Alert Level: 1-O 02366_ ALERT: Suspicious activity at Terminal M001. Dispatching Investigation squad. 02384_ Connecting with Terminal... 02405_ Heat Sink melted. 02405_ Y-45 Defender destroyed. 02428_ Dropped Utility Shielding. 02429_ Acquired Lgt. Armor Plating. 02431_ Acquired 10 matter. 02475_ Connecting with Terminal... 02505_ Material Processor disabled. Map ----- +----------------------------------------------------+ | ????# # + #???????????????????????? | | ????# ######## T #???????????????????????? | | ????# ## #???????????????????????? | | ????# ### ##???????????????????????? | | ????# """ #?# #????????????????????????? | | ????# "T" #?# #????????????????????????? | | ?????# #?# #????????????????????????? | | ???? # ### #????????????????????????? | | ?????+ #????????????????????????? | | ?????# ##########???????????????? | | ?????# ### # #???????????????? | | ?????# %""" #?# # #???????????????? | | ???? # """ #?# #[ """ #???????????????? | | ???? # """ #?# # """"" #???????????????? | | ???### "" #?# / """"" #???????????????? | | ???### | "" ###### """"" #???????????????? | | ???## ! % # # "" #???????????????? | | ???## =%[ # # #???????????????? | | ????# ! + # #???????????????? | | ##### !!##+#+# #####/####???????????????? | | ######!! # # ! #???# #??????????????????? | | ##!! %![!# # #???# ##?????????????????? | | ##!! !!# ########## ######## ??????????? | | ##!! ! !# ##########g#############??????? | | ##!! !# ## ua ??? | | ##]] # ## @ w #???? | | ##] # ## g a k #???? | | ###### ####### ##########+######## #???? | | ??#### ########## ????????????? | | ????## ########## ? #??????????? | | ????## ######## # !! !# ?? +??????????? | | ????## ######## # # ???#??????????? | | ????## ##????## # # ??????????????? | | ????## ##????## # # ??????????????? | | ????## ##????## + # ??????????????? | | ????## ##????## # """ # ??????????????? | | ###### ######## # """ # ??????????????? | | ###### ######## # """ ##??????????????? | | ##!! #### # ##??????????????? | | ##! #### ###########??????????????? | | ## #### ###########??????????????? | | ## #############???????????????????????? | | ##!! #############???????????????????????? | | ##!! ??????????????????? | | ###### ############????????????????????????? | | ######+###############??????????????????????? | | ## ! ##????????# ######?????????????????? | | ## ##????????# ! #?????????????????? | | ## """ ##????????#!=""" #?????????????????? | | ## """ ##????????# """ #?????????????????? | +----------------------------------------------------+ Best States ------------- Heat Dissipation 41 Energy Generation 14 Energy Capacity 250 Matter Stores 300 Matter Capacity 350 Sight Range 18 Robot Scan Range 14 Terrain Scan Density 10 Armor Coverage 150 Resistance: EM 15 Utility Shielding 33 Evasion (%) 55 Targeting Accuracy 8 Item Schematics ----------------- None Robot Schematics ------------------ None Fabricated ------------ Nothing Alien Tech Used ----------------- None Achievements -------------- None Challenges ------------ None Game ------ Seed HeavyStorageEngine Manual? 0 Play Time 00:44:07 Cumulative 8.4 hours Start 2024.12.08 @ 21:02:01 End 2024.12.08 @ 21:47:37 Sessions 1 Manual Loads 0 Difficulty Rogue Special Mode None Game No. 9 Rogue 9 Adventurer 0 Explorer 0 Win Type - Total 0 Types 0/0/0/0/0/0/0/0/0 Lore% 5 Gallery% 15 Achievement% 15 Wizard Run 0 Options --------- Layout 0 ASCII 0 Keyboard 1 Movement Arrows Keybinds 0 Fullscreen 1 Font 18/SmallcapsGlow Map View 76x50 Zoom Use 0% Tactical HUD 1 Map Filters NONE Filters NONE Steam 1 RUN: d1856213-a17d-4329-9aee-3b682d074c44